bitfinex/quotes_ETHUSD_20220119
["timestamp","ask_amount","ask_price","bid_price","bid_amount"]
[1642570508235,2.319649,3108.9,3108.3,2.46182028]
[1642570508435,1.6093575,3108.7,3108.4,0.00909477]
[1642570508835,0.80469,3108.7,3108.4,0.00909477]
[1642570509341,0.01459648,3109.0,3108.4,0.00909477]
[1642570509635,0.81914648,3109.0,3108.4,0.00909477]
[1642570509837,0.81914648,3109.0,3108.4,0.30909477]
[1642570510035,0.81914648,3109.0,3108.4,0.00909477]
[1642570510736,2.4139343,3108.9,3108.3,0.0096632]
[1642570511180,2.4139343,3108.9,3108.3,2.46182028]
[1642570511181,0.80463,3108.7,3108.3,2.46182028]
[1642570511379,0.80463,3108.7,3108.3,0.0096632]
[1642570511578,0.80463,3108.7,3108.4,0.00909477]
[1642570511781,0.80463,3108.7,3108.3,0.0096632]
[1642570512582,1.6092993,3108.7,3108.3,0.0096632]
[1642570513186,0.80458,3108.9,3108.3,0.0096632]
[1642570513484,0.50658,3108.9,3108.3,0.0096632]
[1642570513885,0.01459648,3109.0,3108.3,2.46182028]
[1642570514290,0.01459648,3109.0,3108.4,0.00909477]
[1642570516338,0.80457,3108.9,3108.4,0.00909477]
[1642570517341,0.80457,3108.9,3108.3,2.46182028]
[1642570517541,0.80457,3108.9,3108.4,0.00909477]
[1642570518540,0.50667,3108.9,3108.4,0.00909477]
[1642570518786,0.80471,3108.7,3108.3,0.0096632]
[1642570519385,0.80471,3108.7,3108.3,1.64174885]
[1642570519791,0.80474,3108.5,3108.4,0.00909477]
[1642570519990,0.80474,3108.5,3108.4,2.74272377]
[1642570523531,1.51494,3108.5,3108.4,2.74272377]
[1642570523732,0.51494,3108.5,3108.4,2.74272377]
[1642570525134,1.51494,3108.5,3108.4,2.74272377]
[1642570525334,0.51494,3108.5,3108.4,2.74272377]
[1642570525534,1.51494,3108.5,3108.4,2.74272377]
[1642570528588,1.22314,3108.5,3108.4,2.74272377]
[1642570533791,0.92364,3108.5,3108.4,2.74272377]
[1642570534191,2.44713319,3108.6,3108.4,2.74272377]
[1642570534391,2.44713319,3108.6,3108.5,2.733629]
[1642570534594,3.44920688,3108.6,3108.5,2.74215535]
[1642570535195,3.64443688,3108.6,3108.5,2.74215535]
[1642570539046,3.64443688,3108.6,3107.7,5.72779475]
[1642570539047,6.7,3108.5,3107.7,5.72779475]
[1642570539249,0.80493,3108.2,3107.6,7.45]
[1642570539447,0.386,3108.1,3107.8,0.00397897]
[1642570540451,1.9958786,3108.1,3107.8,0.00397897]
[1642570540649,0.80495,3108.0,3107.8,0.00397897]
[1642570540851,1.0,3108.4,3107.8,0.00397897]
[1642570540852,0.386,3108.4,3107.8,0.00397897]
[1642570541049,0.02990866,3108.1,3107.8,0.02792387]
[1642570541501,0.02990866,3108.1,3107.9,0.00341054]
[1642570544005,0.73838235,3108.3,3107.9,0.00341054]
[1642570545949,0.73838235,3108.3,3108.0,0.01699765]
[1642570546356,0.73838235,3108.3,3108.1,0.00227369]
[1642570547952,3.93838235,3108.3,3108.1,0.00227369]
[1642570549182,3.63958235,3108.3,3108.1,0.00227369]
[1642570550395,3.63958235,3108.3,3108.2,0.01700035]
[1642570550797,3.63958235,3108.3,3108.2,0.01870562]
[1642570550989,3.63958235,3108.3,3108.2,0.00170527]
[1642570554239,3.34568235,3108.3,3108.2,0.00170527]
[1642570556048,3.34568235,3108.3,3108.2,0.02353378]
[1642570559193,3.34568235,3108.3,3108.2,2.75794449]
[1642570559394,3.04628235,3108.3,3108.2,2.75794449]
[1642570561447,4.04628235,3108.3,3108.2,2.75794449]
[1642570561652,4.04628235,3108.3,3108.1,4.014e-05]
[1642570561653,7.39628235,3108.3,3108.1,4.014e-05]
[1642570561848,1.0,3108.2,3108.1,4.014e-05]
[1642570562048,7.8205,3108.2,3108.1,4.014e-05]
[1642570564487,7.5301,3108.2,3108.1,4.014e-05]
[1642570565993,7.5301,3108.2,3108.1,0.02622396]
[1642570569650,7.2293,3108.2,3108.1,0.02622396]
[1642570569850,6.8205,3108.2,3108.1,0.02622396]
[1642570570951,6.8205,3108.2,3108.1,0.05244816]
[1642570571395,7.8205,3108.2,3108.1,0.05244816]
[1642570574702,7.5282,3108.2,3108.1,0.05244816]
[1642570575946,7.5282,3108.2,3108.1,0.02622396]
[1642570579893,7.2279,3108.2,3108.1,0.02622396]
[1642570581095,0.80491,3107.8,3107.2,1.63208565]
[1642570581295,0.80491,3107.8,3107.1,1.63208565]
[1642570581494,1.10491,3107.8,3107.3,0.00511581]
[1642570581694,1.10491,3107.8,3107.4,2.73475628]
[1642570582093,1.10491,3107.8,3107.5,0.00397897]
[1642570582303,0.80491,3107.7,3107.6,2.73475628]
[1642570582536,1.60982,3107.7,3107.6,2.73475628]
[1642570582737,1.60982,3107.7,3107.6,2.73816682]
[1642570582938,1.60982,3107.7,3107.6,0.00341054]
[1642570583339,1.60982,3107.7,3107.4,0.00454739]
[1642570583540,1.60982,3107.7,3107.5,2.73475628]
[1642570583940,1.60982,3107.7,3107.6,0.00341054]
[1642570584141,1.60982,3107.7,3107.6,2.73816682]
[1642570584546,1.60982,3107.7,3107.6,0.00341054]
[1642570585046,1.60982,3107.7,3107.3,2.73475628]
[1642570585047,1.31712,3107.7,3107.4,0.00454739]
[1642570585246,1.31712,3107.7,3107.5,2.73475628]
[1642570585647,1.31712,3107.7,3107.6,0.00341054]
[1642570586385,1.31712,3107.7,3107.2,0.00568424]
[1642570586585,1.31712,3107.7,3107.3,2.73475628]
[1642570586986,1.31712,3107.7,3107.4,0.00454739]
[1642570587191,1.31712,3107.7,3107.5,2.73475628]
[1642570587589,1.31712,3107.7,3107.6,0.00341054]
[1642570587789,1.31712,3107.7,3107.6,2.73816682]
[1642570587989,0.80491,3107.7,3107.6,0.00341054]
[1642570588489,0.80491,3107.7,3107.5,2.73873525]
[1642570588689,0.80491,3107.7,3107.6,2.73475628]
[1642570588891,0.80491,3107.7,3107.6,2.73816682]
[1642570589088,1.60978,3107.8,3107.6,2.73816682]
[1642570589289,1.60978,3107.8,3107.7,2.73475628]
[1642570589489,0.80491,3107.8,3107.7,2.7375984]
[1642570589694,0.80491,3107.8,3107.7,0.00284212]
[1642570590142,0.80491,3107.7,3107.4,0.00454739]
[1642570590341,0.80491,3107.7,3107.5,2.73475628]
[1642570590543,0.77681,3107.7,3107.5,2.73475628]
[1642570590741,0.77681,3107.7,3107.6,0.00341054]
[1642570591044,1.58175,3107.7,3107.6,2.73816682]
[1642570591242,1.58175,3107.7,3107.6,0.00341054]
[1642570591642,1.6098777,3107.6,3107.3,2.73475628]
[1642570591842,0.8049277,3107.6,3107.3,2.73475628]
[1642570592041,0.8049277,3107.6,3107.4,0.00454739]
[1642570592246,0.8049277,3107.6,3107.5,2.73475628]
[1642570592643,0.8049277,3107.6,3107.5,2.73873525]
[1642570595496,0.8151277,3107.6,3107.5,2.73873525]
[1642570595895,0.8049277,3107.6,3107.5,2.73873525]
[1642570596097,0.84590439,3107.6,3107.5,2.73873525]
[1642570597436,0.04097669,3107.6,3107.5,2.73873525]
[1642570598937,3.24097669,3107.6,3107.5,2.73873525]
[1642570600643,2.94327669,3107.6,3107.5,2.73873525]
[1642570601042,2.98425338,3107.6,3107.5,2.73873525]
[1642570605746,2.69295338,3107.6,3107.5,2.73873525]
[1642570605946,2.69295338,3107.6,3107.5,2.76574252]
[1642570607346,2.69295338,3107.6,3107.5,4.67886993]
[1642570607549,2.69295338,3107.6,3107.5,4.76574252]
[1642570607748,2.69295338,3107.6,3107.5,2.76574252]
[1642570607954,2.69295338,3107.6,3107.5,7.81574252]
[1642570608792,2.69295338,3107.6,3107.5,2.76574252]
[1642570609791,2.69295338,3107.6,3107.5,4.65007707]
[1642570610600,2.69295338,3107.6,3107.5,2.76574252]
[1642570610799,2.40135338,3107.6,3107.5,8.35279624]
[1642570610997,2.40135338,3107.6,3107.5,8.32578897]
[1642570611497,2.40135338,3107.6,3107.5,4.62578897]
[1642570611697,2.40135338,3107.6,3107.5,4.60530319]
[1642570611898,2.40135338,3107.6,3107.5,2.73873525]
[1642570613947,2.40135338,3107.6,3107.5,7.08675568]
[1642570614147,2.40135338,3107.6,3107.5,5.23873525]
[1642570614547,2.40135338,3107.6,3107.5,7.10967088]
[1642570614746,2.40135338,3107.6,3107.5,5.23873525]
[1642570615152,2.40135338,3107.6,3107.5,2.10033525]
[1642570615153,8.82395248,3107.6,3107.5,2.10033525]
[1642570615351,0.80514,3107.5,3106.7,1.63208565]
[1642570615651,0.3,3107.3,3106.8,0.00397896]
[1642570615854,0.80521,3107.0,3106.8,0.00397896]
[1642570616052,0.80521,3107.0,3106.4,4.2484]
[1642570616053,5.5389,3106.9,3106.5,0.00568423]
[1642570616696,5.5389,3106.9,3106.3,0.00682108]
[1642570616897,5.5389,3106.9,3106.2,9.03890673]
[1642570617097,0.00284212,3106.8,3106.2,1.63208565]
[1642570617296,0.00284212,3106.8,3106.1,3.7492]
[1642570617297,0.8052,3106.5,3106.1,5.38128565]
[1642570617500,0.8052,3106.5,3106.1,1.63208565]
[1642570617697,0.8052,3106.5,3106.0,11.50390783]
[1642570617896,0.8052,3106.5,3106.0,10.65520783]
[1642570618096,0.8052,3106.5,3106.1,1.63322249]
[1642570618298,0.8052,3106.5,3106.1,0.00113684]
[1642570618501,0.8052,3106.5,3106.1,1.63322249]
[1642570618997,4.0052,3106.5,3106.1,1.63322249]
[1642570619299,4.8104228,3106.5,3106.1,0.00113684]
[1642570619498,4.0052,3106.5,3106.1,0.00113684]
[1642570619699,4.0052,3106.5,3106.1,1.63322249]
[1642570620349,3.2,3106.5,3106.1,1.63322249]
[1642570620950,0.03493893,3106.4,3106.1,1.63322249]
[1642570621159,2.93913893,3106.5,3106.1,1.63322249]
[1642570621549,2.93913893,3106.5,3106.1,0.00113684]
[1642570622351,2.93913893,3106.5,3106.1,1.63322249]
[1642570623054,2.93913893,3106.5,3106.2,1.63208565]
[1642570623253,2.93913893,3106.5,3106.1,1.63322249]
[1642570624094,2.93913893,3106.5,3106.1,1.58322249]
[1642570624294,0.00170527,3106.4,3106.1,1.58322249]
[1642570624494,0.00170527,3106.4,3106.0,9.04981268]
[1642570624694,0.00113684,3106.3,3106.0,9.04981268]
[1642570625100,0.00170527,3106.4,3106.0,8.74981268]
[1642570625399,2.93913893,3106.5,3106.0,8.74981268]
[1642570625400,0.00113684,3106.3,3106.0,9.04981268]
[1642570625799,0.00170527,3106.4,3106.0,7.75]
[1642570625999,0.02848747,3106.4,3106.0,7.75]
[1642570626204,2.67545797,3106.5,3106.1,5.6]
[1642570626400,2.67545797,3106.5,3106.0,7.75]
[1642570626602,2.67545797,3106.5,3106.0,7.45]
[1642570627443,3.48066797,3106.5,3106.0,7.45]
[1642570629947,1.6105,3106.3,3106.0,7.45]
[1642570631051,1.6105,3106.3,3106.2,0.03503612]
[1642570631297,0.51265,3106.3,3106.2,0.03503612]
[1642570635349,1.51265,3106.3,3106.2,0.03503612]
[1642570635549,2.19865,3106.3,3106.2,2.77110385]
[1642570635749,0.89865,3106.3,3106.2,2.77110385]
[1642570635951,1.22444556,3106.3,3106.2,2.77110385]
[1642570636248,1.22444556,3106.3,3106.2,0.03503612]
[1642570636249,2.22444556,3106.3,3106.2,0.03503612]
[1642570636449,1.92914556,3106.3,3106.2,0.03503612]
[1642570637049,7.46804556,3106.3,3106.2,0.03503612]
[1642570638150,7.46804556,3106.3,3106.2,2.77116163]
[1642570638356,6.46804556,3106.3,3106.2,0.03503612]
[1642570638552,7.46804556,3106.3,3106.2,0.03503612]
[1642570641002,0.80539,3106.1,3105.6,1.1863]
[1642570641204,1.19139,3106.0,3105.6,1.1863]
[1642570641402,1.19839,3106.0,3105.7,2.73969356]
[1642570641706,1.19839,3106.0,3105.8,0.00284211]
[1642570642105,2.00378,3106.0,3105.8,0.00284211]
[1642570643545,2.80917,3106.0,3105.8,0.00284211]
[1642570645650,1.0,3105.9,3105.8,0.00284211]
[1642570645850,1.19143,3105.9,3105.4,2.74139883]
[1642570646055,0.80544,3105.7,3105.5,2.73628302]
[1642570646295,1.19144,3105.7,3105.5,2.7408304]
[1642570646494,1.20044,3105.7,3105.6,2.74026198]
[1642570646696,1.19144,3105.7,3105.6,2.74026198]
[1642570649596,4.39144,3105.7,3105.6,2.74026198]
[1642570649797,4.69144,3105.7,3105.6,2.74026198]
[1642570651453,4.40184,3105.7,3105.6,2.74026198]
[1642570651652,4.39144,3105.7,3105.6,2.74026198]
[1642570651853,5.39144,3105.7,3105.6,2.74026198]
[1642570652255,4.39144,3105.7,3105.6,2.74026198]
[1642570652856,5.39144,3105.7,3105.6,2.74026198]
[1642570653257,5.69144,3105.7,3105.6,2.74026198]
[1642570654100,5.69144,3105.7,3105.6,0.00397896]
[1642570654503,0.80548,3105.5,3105.1,0.00682108]
[1642570654707,0.80549,3105.4,3105.2,2.73660997]
[1642570654903,1.10549,3105.4,3105.2,2.73660997]
[1642570655202,0.3,3105.4,3105.3,0.00568423]
[1642570655403,4.5,3105.7,3105.3,2.7422942]
[1642570655701,4.5,3105.7,3105.4,2.74172578]
[1642570655902,0.80548,3105.6,3105.5,2.73660997]
[1642570656105,1.61091,3105.6,3105.5,2.74115735]
[1642570656302,1.91091,3105.6,3105.5,2.74115735]
[1642570656504,2.42409,3105.6,3105.5,2.74115735]
[1642570657308,2.81009,3105.6,3105.5,2.74115735]
[1642570658147,0.686,3105.6,3105.5,2.74115735]
[1642570658546,0.386,3105.6,3105.5,2.74115735]
[1642570658951,3.2,3105.7,3105.5,3.04115735]
[1642570659149,3.2,3105.7,3105.6,10.97560089]
[1642570659349,3.2,3105.7,3105.6,10.97957985]
[1642570660651,3.2,3105.7,3105.6,12.61103293]
[1642570660951,3.2,3105.7,3105.6,10.97957985]
[1642570661608,2.9004,3105.7,3105.6,10.97957985]
[1642570662212,2.9004,3105.7,3105.6,12.61103293]
[1642570662414,2.9004,3105.7,3105.6,16.70674203]
[1642570662617,2.9004,3105.7,3105.6,12.61103293]
[1642570663013,2.9004,3105.7,3105.6,10.97957985]
[1642570664942,2.9004,3105.7,3105.6,12.61103293]
[1642570665150,2.9004,3105.7,3105.6,10.97957985]
[1642570666751,0.80515,3106.4,3105.7,6.75]
[1642570666955,0.84090773,3106.6,3106.2,6.75]
[1642570667153,1.61269514,3106.7,3106.2,9.94779997]
[1642570667352,3.7123,3107.2,3106.2,9.94779997]
[1642570667656,3.7123,3107.2,3106.2,10.94779997]
[1642570667854,3.7123,3107.2,3106.2,34.05550907]
[1642570668054,3.7123,3107.2,3106.2,35.57676728]
[1642570668255,0.80485,3107.5,3106.5,0.8048682]
[1642570668454,1.60978,3107.8,3106.7,18.79]
[1642570668700,0.00454739,3107.1,3106.8,2.73660997]
[1642570668902,0.00454739,3107.1,3106.8,3.73660997]
[1642570669106,3.8659,3107.9,3106.9,8.77601969]
[1642570669107,0.00397897,3107.0,3106.9,8.77601969]
[1642570669302,0.00397897,3107.0,3106.9,11.81262966]
[1642570669505,0.00397897,3107.0,3106.9,12.91037776]
[1642570669703,0.00397897,3107.0,3106.9,13.71518506]
[1642570670107,0.00397897,3107.0,3106.9,13.85338503]
[1642570671103,0.00397897,3107.0,3106.9,13.88365377]
[1642570671303,3.18682131,3107.1,3107.0,6.75]
[1642570671505,3.18682131,3107.1,3107.0,11.62799435]
[1642570671905,2.88752131,3107.1,3107.0,11.62799435]
[1642570672761,2.88752131,3107.1,3107.0,12.43272435]
[1642570672967,1.61207119,3107.9,3107.2,19.5947369]
[1642570673263,0.00454738,3107.8,3107.4,18.79]
[1642570673462,0.00454738,3107.8,3107.5,4.73660997]
[1642570673663,0.00397896,3107.7,3107.6,2.73660997]
[1642570673865,0.00397896,3107.7,3107.6,6.75]
[1642570674066,0.00397896,3107.7,3107.6,10.92922058]
[1642570675668,0.00397896,3107.7,3107.6,8.19261061]
[1642570676071,0.00397896,3107.7,3107.6,8.22280636]
[1642570676295,0.00397896,3107.7,3107.6,10.95770687]
[1642570676897,0.51904896,3108.4,3107.7,6.75]
[1642570677097,0.51904896,3108.4,3107.8,2.23995963]
[1642570677302,0.00341054,3108.3,3107.8,2.23995963]
[1642570677698,0.00284212,3108.2,3107.8,2.23995963]
[1642570678105,0.0022737,3108.1,3107.8,2.23995963]
[1642570678504,1.9117594,3108.5,3107.8,0.3]
[1642570678505,0.00170527,3108.0,3107.8,0.3]
[1642570678706,0.00170527,3108.0,3107.9,8.91088]
[1642570678906,1.6117594,3108.5,3107.9,12.73955692]
[1642570679104,4.3343,3109.2,3108.0,2.73457692]
[1642570679304,0.00397897,3108.4,3108.1,2.07658358]
[1642570679506,0.00397897,3108.4,3108.2,1.12565733]
[1642570679804,0.00341054,3108.3,3108.2,1.12565733]
[1642570680050,0.00341054,3108.3,3108.2,3.64195733]
[1642570680248,0.00341054,3108.3,3108.2,29.34283733]
[1642570680654,0.00341054,3108.3,3108.2,33.15395733]
[1642570680851,0.00341054,3108.3,3108.2,30.14725733]
[1642570681052,0.00341054,3108.3,3108.2,30.53977083]
[1642570681749,5.167,3109.6,3108.3,6.75]
[1642570681952,5.167,3109.6,3108.4,3.18770673]
[1642570682153,1.31264459,3109.4,3108.4,4.18770673]
[1642570682550,0.00568424,3109.3,3108.4,4.18770673]
[1642570682950,0.00511581,3109.2,3108.4,4.18770673]
[1642570683153,0.00511581,3109.2,3108.9,1.21471735]
[1642570683351,0.00454739,3109.1,3109.0,1.80406714]
[1642570683823,0.00454739,3109.1,3109.0,2.10406714]
[1642570684222,0.00454739,3109.1,3109.0,6.50406714]
[1642570684625,0.00454739,3109.1,3109.0,0.3]
[1642570684827,0.00454739,3109.1,3108.9,1.51471735]
[1642570685226,0.00397897,3109.0,3108.9,1.51471735]
[1642570685626,0.00568424,3109.0,3108.9,1.51471735]
[1642570686027,0.00568424,3109.0,3108.9,0.33006089]
[1642570686229,0.00568424,3109.0,3108.9,0.03006089]
[1642570686426,0.00568424,3109.0,3108.9,0.33006089]
[1642570686626,0.00568424,3109.0,3108.9,0.03006089]
[1642570687227,1.82507617,3109.4,3108.9,1.27523705]
[1642570687443,1.82507617,3109.4,3108.9,1.57751075]
[1642570687643,1.82507617,3109.4,3109.0,0.00170527]
[1642570687847,7.136,3109.3,3108.9,0.03006089]
[1642570688054,10.88598535,3109.2,3108.9,0.03006089]
[1642570688252,0.386,3109.1,3108.9,0.03006089]
[1642570688455,2.2182448,3109.0,3108.9,0.03006089]
[1642570688651,1.386,3109.0,3108.9,0.03006089]
[1642570688852,0.386,3109.0,3108.9,0.03006089]
[1642570690852,0.386,3109.0,3108.3,1.2206]
[1642570691056,0.386,3109.0,3108.3,1.5206]
[1642570691295,0.386,3109.0,3108.4,0.00341054]
[1642570691495,1.61139529,3109.2,3108.4,0.70561054]
[1642570691703,1.61139529,3109.2,3108.5,1.74454389]
[1642570691901,1.56139529,3109.2,3108.5,1.74738601]
[1642570692101,1.56139529,3109.2,3108.6,0.0022737]
[1642570692403,1.27039529,3109.2,3108.6,0.0022737]
[1642570692701,1.27039529,3109.2,3108.6,0.3]
[1642570693200,0.00170527,3109.3,3109.0,1.22447718]
[1642570695952,0.00170527,3109.3,3109.2,0.03003255]
[1642570697155,0.84002642,3109.8,3109.2,7.73283255]
[1642570697358,3.3513,3110.1,3109.3,2.0121419]
[1642570697555,0.00113684,3109.5,3109.3,3.3121419]
[1642570697757,0.00113684,3109.5,3109.4,8.75]
[1642570697955,0.0073895,3110.6,3109.4,8.75]
[1642570698154,0.0073895,3110.6,3110.4,1.13647624]
[1642570698359,0.00682108,3110.5,3110.4,2.16707624]
[1642570698558,0.00682108,3110.5,3110.4,2.46707624]
[1642570699000,0.00682108,3110.5,3110.4,6.31707624]
[1642570699397,0.00682108,3110.5,3110.4,7.5162835]
[1642570699600,0.00682108,3110.5,3110.4,5.65489633]
[1642570701002,0.00682108,3110.5,3110.4,5.68478626]
[1642570702204,0.03188863,3110.5,3110.4,5.68478626]
[1642570702458,1.34950439,3110.7,3110.5,5.4]
[1642570702647,1.34950439,3110.7,3110.6,1.92498302]
[1642570702846,1.34950439,3110.7,3110.4,5.54646697]
[1642570703047,1.36818852,3110.7,3110.4,1.36048993]
[1642570703248,1.36818852,3110.7,3110.4,0.02988993]
[1642570703648,1.66818852,3110.7,3110.4,0.02988993]
[1642570703847,0.386,3110.6,3110.4,0.02988993]
[1642570704252,0.01754728,3110.5,3110.4,0.02988993]
[1642570707598,0.10144728,3110.6,3110.4,0.02988993]
[1642570708002,0.01754728,3110.5,3110.4,0.02988993]
[1642570709806,0.01754728,3110.5,3109.3,3.2835]
[1642570709807,0.40354728,3110.5,3109.3,3.2835]
[1642570710055,1.6087,3110.2,3109.3,3.5835]
[1642570710254,0.386,3110.1,3109.4,0.00625266]
[1642570711057,1.60867,3109.8,3109.4,0.30625266]
[1642570711457,1.60867,3109.8,3109.5,0.00568424]
[1642570711458,0.3,3109.7,3109.5,0.00568424]
[1642570712059,0.3,3109.7,3109.3,0.00682108]
[1642570712657,0.80433,3109.7,3109.3,0.00682108]
[1642570713800,0.80433,3109.7,3109.1,0.00795793]
[1642570714405,2.41307,3109.7,3109.1,0.00795793]
[1642570714703,2.41307,3109.7,3109.1,1.80728203]
[1642570714904,0.386,3110.1,3109.1,0.00795793]
[1642570715101,0.386,3110.1,3108.9,3.26016518]
[1642570715102,0.80426,3110.0,3109.2,0.00738951]
[1642570715302,0.80426,3110.0,3109.0,0.00852635]
[1642570715502,0.80426,3110.0,3109.1,2.73391011]
[1642570715702,0.80426,3110.0,3109.2,1.87287024]
[1642570715903,1.386,3110.1,3109.3,2.73384813]
[1642570716105,0.686,3110.1,3109.3,0.30682108]
[1642570716303,0.686,3110.1,3109.4,0.00625266]
[1642570716304,0.386,3110.1,3109.4,0.00625266]
[1642570716703,0.386,3110.1,3109.4,0.30625266]
[1642570716907,0.386,3110.1,3109.3,0.00682108]
[1642570717104,0.386,3110.1,3109.5,0.00568424]
[1642570717305,0.386,3110.1,3109.3,0.00682108]
[1642570717573,1.19022,3110.1,3109.3,0.00682108]
[1642570717761,0.89812,3110.1,3109.3,0.00682108]
[1642570719668,0.8043,3110.0,3109.3,0.00682108]
[1642570720269,0.386,3109.9,3109.3,0.00682108]
[1642570721071,0.386,3109.9,3109.5,0.02786617]
[1642570721504,1.60899,3109.8,3109.6,0.00511581]
[1642570721702,0.386,3109.7,3109.6,0.00511581]
[1642570721905,0.686,3109.7,3109.6,0.00511581]
[1642570722702,3.536,3109.7,3109.6,0.00511581]
[1642570722905,3.232,3109.7,3109.6,0.00511581]
[1642570723104,1.382,3109.7,3109.6,0.00511581]
[1642570724106,0.382,3109.7,3109.6,0.00511581]
[1642570724305,1.382,3109.7,3109.6,0.00511581]
[1642570725150,1.682,3109.7,3109.6,0.00511581]
[1642570727553,0.382,3109.7,3109.6,0.00511581]
[1642570728154,0.0814,3109.7,3109.6,0.00511581]
[1642570729019,0.3814,3109.7,3109.6,0.00511581]
[1642570729618,6.60606753,3109.6,3109.5,0.02786617]
[1642570729818,1.99206753,3109.6,3109.5,0.02786617]
[1642570730020,2.99206753,3109.6,3109.5,0.02786617]
[1642570731021,0.8045,3109.4,3108.7,1.78970775]
[1642570731221,0.8045,3109.3,3108.7,0.3]
[1642570731420,0.8045,3109.3,3108.8,0.00454739]
[1642570731820,0.8045,3109.3,3108.7,0.00511581]
[1642570732656,0.8045,3109.2,3108.7,0.00511581]
[1642570732856,1.60901,3109.2,3108.7,0.00511581]
[1642570733258,1.31781,3109.2,3108.7,0.00511581]
[1642570733859,1.31781,3109.2,3108.7,1.78721574]
[1642570734060,0.51331,3109.2,3108.8,2.73422542]
[1642570734261,0.386,3109.4,3108.9,1.78598787]
[1642570734460,0.386,3109.4,3108.9,1.8400365]
[1642570734662,0.386,3109.4,3109.0,2.73747874]
[1642570734860,0.386,3109.4,3109.1,1.80312802]
[1642570735060,0.386,3109.4,3109.1,0.30284212]
[1642570735265,1.19041,3109.4,3109.2,0.0022737]
[1642570736060,1.19041,3109.4,3109.2,0.02497144]
[1642570736507,3.74041,3109.4,3109.3,0.00170527]
[1642570736707,4.54494,3109.4,3109.3,0.00170527]
[1642570738207,4.25214,3109.4,3109.3,0.00170527]
[1642570738409,1.70214,3109.4,3109.3,0.00170527]
[1642570742656,4.65214,3109.4,3109.3,0.00170527]
[1642570743255,4.36204,3109.4,3109.3,0.00170527]
[1642570744111,5.36204,3109.4,3109.3,0.00170527]
[1642570744312,4.36204,3109.4,3109.3,0.00170527]
[1642570744517,5.36204,3109.4,3109.3,0.00170527]
[1642570744715,5.66204,3109.4,3109.3,0.00170527]
[1642570746320,6.61314,3109.4,3109.3,0.00170527]
[1642570746519,6.75,3109.3,3109.2,0.00177671]
[1642570746717,8.136,3109.3,3109.2,7.671e-05]
[1642570746917,11.936,3109.3,3108.5,2.0]
[1642570747119,1.609433,3109.1,3108.3,2.0]
[1642570747317,0.386,3109.0,3108.6,0.00397897]
[1642570748357,0.0912,3109.0,3108.6,0.00397897]
[1642570748559,0.80466,3108.9,3108.6,0.00397897]
[1642570748756,0.386,3108.8,3108.3,0.00568424]
[1642570748960,0.686,3108.8,3108.4,2.73428706]
[1642570749159,0.686,3108.8,3108.3,0.00568424]
[1642570749357,0.686,3108.8,3108.5,0.00454739]
[1642570749561,1.49066,3108.8,3108.3,0.00568424]
[1642570749959,2.49066,3108.8,3108.2,0.00625266]
[1642570750159,0.80466,3108.7,3108.2,0.00625266]
[1642570750359,1.19066,3108.7,3108.2,0.00625266]
[1642570750559,1.19066,3108.7,3108.0,0.00738951]
[1642570750560,0.3,3108.6,3108.0,0.00738951]
[1642570750758,0.3,3108.6,3108.1,2.73445509]
[1642570750963,3.29558,3108.7,3108.1,2.73445509]
[1642570751199,3.29558,3108.7,3108.2,0.00625266]
[1642570751200,1.80479,3108.6,3108.2,0.00625266]
[1642570751402,2.60958,3108.6,3108.2,0.00625266]
[1642570751603,0.80479,3108.5,3107.8,0.00852636]
[1642570751804,1.60959,3108.5,3107.9,2.73453955]
[1642570752204,0.3,3108.4,3108.0,0.00738951]
[1642570752504,1.1048,3108.4,3108.0,0.00738951]
[1642570752904,0.80479,3108.3,3107.8,0.00852636]
[1642570753105,0.80479,3108.1,3107.9,2.7345848]
[1642570753509,0.50619,3108.1,3108.0,2.50738951]
[1642570753704,0.50619,3108.1,3108.0,5.24197431]
[1642570753905,0.80479,3108.2,3108.0,5.24197431]
[1642570754104,0.80479,3108.2,3108.0,2.50738951]
[1642570754303,0.80479,3108.2,3107.7,1.1904]
[1642570754304,0.80479,3108.2,3108.1,0.00682108]
[1642570754709,0.80479,3108.2,3107.8,0.00852636]
[1642570754960,0.686,3108.4,3107.9,2.73455367]
[1642570755154,0.386,3108.4,3107.9,2.73455367]
[1642570755354,0.386,3108.4,3108.0,0.00738951]
[1642570755554,0.386,3108.4,3108.1,2.73455367]
[1642570755954,0.386,3108.4,3108.2,0.00625266]
[1642570758558,0.0941,3108.4,3108.2,0.00625266]
[1642570763360,3.9522,3108.9,3108.3,6.58421939]
[1642570763557,3.6611,3108.9,3108.4,2.81352909]
[1642570763758,0.94270997,3109.0,3108.5,2.73421939]
[1642570764061,0.94270997,3109.0,3108.5,2.73876678]
[1642570764258,0.80457,3108.9,3108.5,0.00454739]
[1642570764660,0.80457,3108.9,3108.2,0.00625266]
[1642570764858,0.3,3108.8,3108.3,2.7342496]
[1642570765158,1.24270997,3109.0,3108.4,0.00511581]
[1642570765558,2.04733997,3109.0,3108.4,0.00511581]
[1642570765758,0.80464,3108.7,3108.2,0.00625266]
[1642570765960,0.80464,3108.7,3108.3,2.73423302]
[1642570766502,0.80464,3108.7,3108.4,0.00511581]
[1642570767101,0.80464,3108.7,3107.9,0.00795793]
[1642570767301,0.80464,3108.7,3108.0,2.73435165]
[1642570767502,1.60931,3108.7,3108.1,2.73435165]
[1642570767701,0.80466,3108.6,3108.1,2.74117273]
[1642570767903,0.80466,3108.6,3108.2,2.74060431]
[1642570768103,0.80466,3108.6,3108.3,2.73435165]
[1642570768303,0.80468,3108.6,3108.3,2.74003589]
[1642570768503,1.0,3108.9,3108.4,0.00511581]
[1642570768706,0.7038,3108.9,3108.4,0.00511581]
[1642570768906,0.13819997,3109.0,3107.8,0.00852636]
[1642570769107,0.13819997,3109.0,3107.9,2.7343312]
[1642570769311,0.13819997,3109.0,3108.0,1.85718975]
[1642570769507,0.80455,3108.9,3108.1,2.7343312]
[1642570769706,0.80455,3108.9,3108.6,1.35730858]
[1642570769967,0.94275997,3109.0,3108.6,1.35730858]
[1642570769968,0.3,3108.8,3108.6,1.35730858]
[1642570770158,0.3,3108.8,3108.7,0.00341054]
[1642570770357,0.13819997,3109.0,3108.7,0.00341054]
[1642570770757,0.13819997,3109.0,3108.9,1.20610885]
[1642570771161,1.60895,3109.4,3108.9,1.20838255]
[1642570771360,1.22,3109.7,3108.9,1.50838255]
[1642570771361,6.4326,3109.3,3108.9,1.50838255]